fUST/lending_fUST_20240613
["ID","MTS","AMOUNT","RATE_DAILY","PERIOD"]
[329318619,1718241064917,-500.0,0.0001863,2]
[329318620,1718241064932,-1393.98,0.0001863,2]
[329318621,1718241064950,-606.4,0.0001863,2]
[329318622,1718241064969,-500.0,0.0001863,2]
[329318623,1718241064983,-500.0,0.0001863,2]
[329318624,1718241065008,-1427.69,0.0001863,2]
[329318625,1718241065019,-500.0,0.0001863,2]
[329318626,1718241065030,-2703.56,0.0001863,2]
[329318627,1718241065043,-506.11,0.0001863,2]
[329318628,1718241065054,-369.19017065,0.0001863,2]
[329318629,1718241065066,-562.2,0.0001863,2]
[329318630,1718241065079,-151.0,0.0001863,2]
[329318631,1718241065089,-7179.41,0.0001863,2]
[329318632,1718241065102,-712.74,0.0001863,2]
[329318633,1718241065117,-7005.99,0.0001863,2]
[329318634,1718241065128,-5097.51,0.0001863,2]
[329318635,1718241065139,-500.0,0.0001863,2]
[329318636,1718241065153,-518.08,0.0001863,2]
[329318637,1718241065171,-500.0,0.0001863,2]
[329318638,1718241065186,-825.09,0.0001863,2]
[329318639,1718241065198,-738.77,0.0001863,2]
[329318640,1718241065212,-1768.76,0.0001863,2]
[329318641,1718241065225,-609.45699189,0.0001863,2]
[329318642,1718241065238,-2484.54,0.0001863,2]
[329318643,1718241065249,-500.0,0.0001863,2]
[329318644,1718241065261,-509.26123511,0.0001863,2]
[329318645,1718241065272,-500.0,0.0001863,2]
[329318646,1718241065284,-500.0,0.0001863,2]
[329318647,1718241065297,-2869.17,0.0001863,2]
[329318648,1718241065309,-510.34,0.0001863,2]
[329318649,1718241065320,-549.19,0.0001863,2]
[329318650,1718241065331,-602.82,0.0001863,2]
[329318651,1718241065343,-393.30660927,0.0001863,2]
[329318652,1718241065354,-500.0,0.0001863,2]
[329318653,1718241065365,-621.84608313,0.0001863,2]
[329318654,1718241065376,-250.0,0.0001863,2]
[329318655,1718241065403,-500.0,0.00018899,2]
[329318656,1718241065414,-938.95840571,0.000189,2]
[329318657,1718241065425,-2854.4700353,0.000189,2]
[329318658,1718241065437,-890.63,0.00018903,2]
[329318659,1718241065454,-500.0,0.00018903,2]
[329318660,1718241065470,-500.0,0.00018903,2]
[329318661,1718241065486,-532.96,0.00018904,2]
[329318662,1718241065513,-608.85,0.00018904,2]
[329318663,1718241065529,-687.83,0.00018904,2]
[329318664,1718241065545,-500.0,0.00018904,2]
[329318665,1718241065559,-500.0,0.00018904,2]
[329318666,1718241065571,-500.0,0.00018904,2]
[329318667,1718241065587,-500.0,0.00018904,2]
[329318668,1718241065603,-550.14,0.00018904,2]
[329318669,1718241065620,-603.59,0.00018904,2]
[329318670,1718241065632,-380.15,0.00018904,2]
[329318671,1718241065644,-500.0,0.00018904,2]
[329318672,1718241065656,-753.06,0.00018904,2]
[329318673,1718241065669,-500.0,0.00018904,2]
[329318674,1718241065681,-500.0,0.00018904,2]
[329318675,1718241065697,-1411.69,0.00018904,2]
[329318676,1718241065712,-538.16,0.00018904,2]
[329318677,1718241065728,-500.0,0.00018904,2]
[329318678,1718241065740,-889.29,0.00018904,2]
[329318679,1718241065751,-500.0,0.00018904,2]
[329318680,1718241065762,-1393.98,0.00018904,2]
[329318681,1718241065775,-606.4,0.00018904,2]
[329318682,1718241065789,-500.0,0.00018904,2]
[329318683,1718241065804,-500.0,0.00018904,2]
[329318684,1718241065816,-1427.69,0.00018904,2]
[329318685,1718241065829,-500.0,0.00018904,2]
[329318686,1718241065841,-2703.56,0.00018904,2]
[329318687,1718241065951,-506.11,0.00018904,2]
[329318688,1718241065967,-562.2,0.00018904,2]
[329318689,1718241065978,-7179.41,0.00018904,2]
[329318690,1718241065992,-712.74,0.00018904,2]
[329318691,1718241066006,-7005.99,0.00018904,2]
[329318692,1718241066016,-5097.51,0.00018904,2]
[329318693,1718241066028,-500.0,0.00018904,2]
[329318694,1718241066041,-518.08,0.00018904,2]
[329318695,1718241066056,-500.0,0.00018904,2]
[329318696,1718241066070,-825.09,0.00018904,2]
[329318697,1718241066085,-738.77,0.00018904,2]
[329318698,1718241066098,-1768.76,0.00018904,2]
[329318699,1718241066112,-2484.54,0.00018904,2]
[329318700,1718241066127,-500.0,0.00018904,2]
[329318701,1718241066143,-500.0,0.00018904,2]
[329318702,1718241066156,-2869.17,0.00018904,2]
[329318703,1718241066171,-510.34,0.00018904,2]
[329318704,1718241066194,-549.19,0.00018904,2]
[329318705,1718241066212,-602.82,0.00018904,2]
[329318706,1718241066225,-500.0,0.00018999,2]
[329318707,1718241066238,-500.0,0.00018999,2]
[329318708,1718241066255,-500.0,0.00018999,2]
[329318709,1718241066269,-500.0,0.00018999,2]
[329318710,1718241066286,-500.0,0.00018999,2]
[329318711,1718241066301,-246.95742665,0.00018999,2]
[329318712,1718241066323,-890.63,0.00018999,2]
[329318713,1718241066339,-890.63,0.00018999,2]
[329318714,1718241066352,-890.63,0.00018999,2]
[329318715,1718241066364,-890.63,0.00018999,2]
[329318716,1718241066383,-890.65,0.00018999,2]
[329318717,1718241066420,-500.0,0.00018999,2]
[329318718,1718241066433,-500.0,0.00018999,2]
[329318719,1718241066450,-217.28,0.00018999,2]
[329318720,1718241066469,-500.0,0.00018999,2]
[329318721,1718241066484,-500.0,0.00018999,2]
[329318722,1718241066506,-500.0,0.00018999,2]
[329318723,1718241066520,-40892.25337607,0.00019,2]
[329318724,1718241066533,-7270.73643792,0.00019,2]
[329318725,1718241066548,-69811.0,0.00019,2]
[329318726,1718241066561,-394.20283113,0.00019,2]
[329318727,1718241066581,-1000.0,0.00019,2]
[329318728,1718241066593,-314.7971623,0.00019041,2]
[329318729,1718241066605,-1000.0,0.00019148,2]
[329318730,1718241066617,-300.0,0.00019162,2]
[329318731,1718241066630,-500.0,0.00019178,2]
[329318732,1718241066642,-500.0,0.00019178,2]
[329318733,1718241066654,-500.0,0.00019178,2]
[329318734,1718241066672,-506.00297607,0.00019178,2]
[329318735,1718241066686,-500.0,0.00019178,2]
[329318736,1718241066701,-457.06048975,0.00019178,2]
[329318737,1718241066716,-500.0,0.00019178,2]
[329318738,1718241066730,-500.0,0.00019178,2]
[329318739,1718241066743,-500.0,0.00019178,2]
[329318740,1718241066756,-500.0,0.00019178,2]
[329318741,1718241066767,-500.0,0.00019178,2]
[329318742,1718241066783,-500.0,0.00019178,2]
[329318743,1718241066796,-340.80340737,0.00019178,2]
[329318744,1718241066808,-500.0,0.00019178,2]
[329318745,1718241066820,-463.74771022,0.00019178,2]
[329318746,1718241066832,-500.0,0.00019178,2]
[329318747,1718241066843,-397.95289237,0.00019178,2]
[329318748,1718241066854,-499.99999999,0.00019178,2]
[329318749,1718241066865,-500.0,0.00019178,2]
[329318750,1718241066876,-300.03956294,0.00019178,2]
[329318751,1718241066888,-500.0,0.00019178,2]
[329318752,1718241066899,-500.0,0.00019178,2]
[329318753,1718241066910,-500.0,0.00019178,2]
[329318754,1718241066921,-500.0,0.00019178,2]
[329318755,1718241066932,-500.0,0.00019178,2]
[329318756,1718241066943,-500.0,0.00019178,2]
[329318757,1718241066955,-500.0,0.00019178,2]
[329318758,1718241066967,-500.0,0.00019178,2]
[329318759,1718241066982,-500.0,0.00019178,2]
[329318760,1718241066994,-500.0,0.00019178,2]
[329318761,1718241067006,-500.0,0.00019178,2]
[329318762,1718241067022,-500.0,0.00019178,2]
[329318763,1718241067037,-500.0,0.00019178,2]
[329318764,1718241067052,-500.0,0.00019178,2]
[329318765,1718241067065,-500.0,0.00019178,2]
[329318766,1718241067075,-500.0,0.00019178,2]
[329318767,1718241067088,-500.0,0.00019178,2]
[329318768,1718241067099,-500.0,0.00019178,2]
[329318769,1718241067110,-500.0,0.00019178,2]
[329318770,1718241067121,-500.0,0.00019178,2]
[329318771,1718241067132,-500.0,0.00019178,2]
[329318772,1718241067143,-532.96,0.00019178,2]
[329318773,1718241067154,-608.85,0.00019178,2]
[329318774,1718241067166,-687.83,0.00019178,2]
[329318775,1718241067182,-500.0,0.00019178,2]
[329318776,1718241067194,-500.0,0.00019178,2]
[329318777,1718241067207,-477.3871652,0.00019178,2]
[329318778,1718241067219,-500.0,0.00019178,2]
[329318779,1718241067232,-550.14,0.00019178,2]
[329318780,1718241067244,-603.59,0.00019178,2]
[329318781,1718241067258,-500.0,0.00019178,2]
[329318782,1718241067276,-753.06,0.00019178,2]
[329318783,1718241067292,-500.0,0.00019178,2]
[329318784,1718241067314,-1411.69,0.00019178,2]
[329318785,1718241067337,-538.16,0.00019178,2]
[329318786,1718241067351,-500.0,0.00019178,2]
[329318787,1718241067377,-889.29,0.00019178,2]
[329318788,1718241067415,-500.0,0.00019178,2]
[329318789,1718241067430,-1393.98,0.00019178,2]
[329318790,1718241067450,-606.4,0.00019178,2]
[329318791,1718241067463,-500.0,0.00019178,2]
[329318792,1718241067475,-508.594545,0.00019178,2]
[329318793,1718241067488,-1427.69,0.00019178,2]
[329318794,1718241067501,-500.0,0.00019178,2]
[329318795,1718241067515,-2703.56,0.00019178,2]
[329318796,1718241067533,-506.11,0.00019178,2]
[329318797,1718241067548,-562.2,0.00019178,2]
[329318798,1718241067560,-7179.41,0.00019178,2]
[329318799,1718241067573,-712.74,0.00019178,2]
[329318800,1718241067587,-7005.99,0.00019178,2]
[329318801,1718241067603,-5097.51,0.00019178,2]
[329318802,1718241067618,-500.0,0.00019178,2]
[329318803,1718241067631,-518.08,0.00019178,2]
[329318804,1718241067657,-315.91901536,0.00019178,2]
[329318805,1718241067671,-825.09,0.00019178,2]
[329318806,1718241067697,-738.77,0.00019178,2]
[329318807,1718241067713,-1768.76,0.00019178,2]
[329318808,1718241067725,-2484.54,0.00019178,2]
[329318809,1718241067737,-500.0,0.00019178,2]
[329318810,1718241067750,-500.0,0.00019178,2]
[329318811,1718241067773,-2869.17,0.00019178,2]
[329318812,1718241067790,-510.34,0.00019178,2]
[329318813,1718241067804,-549.19,0.00019178,2]
[329318814,1718241067821,-602.82,0.00019178,2]
[329318815,1718241067833,-159.547304,0.00019178,2]
[329318816,1718241067847,-160.1943387,0.00019178,2]
[329318817,1718241067857,-163.499295,0.00019178,2]
[329318818,1718241067870,-929.68121874,0.00019183,2]
[329318819,1718241067883,-300.0,0.00019224,2]
[329318820,1718241067895,-1000.0,0.00019273,2]
[329318821,1718241067905,-1000.0,0.00019274,2]
[329318822,1718241067917,-300.0,0.00019292,2]
[329318823,1718241067929,-1000.0,0.00019309,2]
[329318824,1718241067940,-300.0,0.00019343,2]
[329318825,1718241067950,-1000.0,0.00019365,2]
[329318826,1718241067962,-300.0,0.00019433,2]
[329318827,1718241067973,-532.96,0.00019452,2]
[329318828,1718241067990,-608.85,0.00019452,2]
[329318829,1718241068007,-687.83,0.00019452,2]
[329318830,1718241068017,-500.0,0.00019452,2]
[329318831,1718241068028,-500.0,0.00019452,2]
[329318832,1718241068038,-500.0,0.00019452,2]
[329318833,1718241068049,-550.14,0.00019452,2]
[329318834,1718241068059,-603.59,0.00019452,2]
[329318835,1718241068069,-500.0,0.00019452,2]
[329318836,1718241068080,-753.06,0.00019452,2]
[329318837,1718241068090,-500.0,0.00019452,2]
[329318838,1718241068101,-1411.69,0.00019452,2]
[329318839,1718241068111,-538.16,0.00019452,2]
[329318840,1718241068121,-500.0,0.00019452,2]
[329318841,1718241068131,-889.29,0.00019452,2]
[329318842,1718241068144,-1393.98,0.00019452,2]
[329318843,1718241068156,-606.4,0.00019452,2]
[329318844,1718241068169,-500.0,0.00019452,2]
[329318845,1718241068180,-1427.69,0.00019452,2]
[329318846,1718241068192,-2703.56,0.00019452,2]
[329318847,1718241068203,-506.11,0.00019452,2]
[329318848,1718241068220,-562.2,0.00019452,2]
[329318849,1718241068233,-7179.41,0.00019452,2]
[329318850,1718241068248,-712.74,0.00019452,2]
[329318851,1718241068261,-7005.99,0.00019452,2]
[329318852,1718241068275,-5097.51,0.00019452,2]
[329318853,1718241068286,-500.0,0.00019452,2]
[329318854,1718241068308,-518.08,0.00019452,2]
[329318855,1718241068318,-825.09,0.00019452,2]
[329318856,1718241068329,-738.77,0.00019452,2]
[329318857,1718241068339,-1768.76,0.00019452,2]
[329318858,1718241068351,-2484.54,0.00019452,2]
[329318859,1718241068365,-500.0,0.00019452,2]
[329318860,1718241068380,-500.0,0.00019452,2]
[329318861,1718241068410,-2869.17,0.00019452,2]
[329318862,1718241068430,-510.34,0.00019452,2]
[329318863,1718241068441,-549.19,0.00019452,2]
[329318864,1718241068454,-602.82,0.00019452,2]
[329318865,1718241068468,-1000.0,0.000195,2]
[329318866,1718241068486,-620.0001818,0.00019519,2]
[329318867,1718241068506,-162.0,0.0001952,2]
[329318868,1718241068523,-300.0,0.00019537,2]
[329318869,1718241068536,-532.96,0.00019726,2]
[329318870,1718241068549,-608.85,0.00019726,2]
[329318871,1718241068561,-687.83,0.00019726,2]
[329318872,1718241068574,-500.0,0.00019726,2]
[329318873,1718241068589,-500.0,0.00019726,2]
[329318874,1718241068608,-500.0,0.00019726,2]
[329318875,1718241068625,-550.14,0.00019726,2]
[329318876,1718241068644,-603.59,0.00019726,2]
[329318877,1718241068657,-500.0,0.00019726,2]
[329318878,1718241068670,-753.06,0.00019726,2]
[329318879,1718241068685,-500.0,0.00019726,2]
[329318880,1718241068698,-1411.69,0.00019726,2]
[329318881,1718241068709,-538.16,0.00019726,2]
[329318882,1718241068722,-500.0,0.00019726,2]
[329318883,1718241068739,-889.29,0.00019726,2]
[329318884,1718241068750,-1393.98,0.00019726,2]
[329318885,1718241068769,-606.4,0.00019726,2]
[329318886,1718241068783,-500.0,0.00019726,2]
[329318887,1718241068796,-1427.69,0.00019726,2]
[329318888,1718241068810,-2703.56,0.00019726,2]
[329318889,1718241068821,-506.11,0.00019726,2]
[329318890,1718241068839,-562.2,0.00019726,2]
[329318891,1718241068858,-7179.41,0.00019726,2]
[329318892,1718241068871,-712.74,0.00019726,2]
[329318893,1718241068886,-7005.99,0.00019726,2]
[329318894,1718241068900,-5097.51,0.00019726,2]
[329318895,1718241068913,-500.0,0.00019726,2]
[329318896,1718241068928,-518.08,0.00019726,2]
[329318897,1718241068941,-825.09,0.00019726,2]
[329318898,1718241068953,-738.77,0.00019726,2]
[329318899,1718241068977,-1768.76,0.00019726,2]
[329318900,1718241068997,-2484.54,0.00019726,2]
[329318901,1718241069029,-500.0,0.00019726,2]
[329318902,1718241069050,-2869.17,0.00019726,2]
[329318903,1718241069083,-510.34,0.00019726,2]
[329318904,1718241069100,-549.19,0.00019726,2]
[329318905,1718241069114,-602.82,0.00019726,2]
[329318906,1718241069126,-84615.69777551,0.00019888,2]
[329318908,1718241708317,230.54018192,9.999e-05,2]
[329318909,1718241708353,141.34339936,9.999e-05,2]
[329318912,1718242212009,163.48013008,9.9e-05,2]
[329318953,1718242233824,-166.5444297,0.00015559,2]
[329318954,1718242233836,-300.0,0.00015999,2]
[329318955,1718242233853,-28512.95895584,0.00016,2]
[329318990,1718242241058,-82190.04104416,0.00016,2]
[329318991,1718242241070,-1469.24111372,0.00016338,2]
[329318992,1718242241088,-768.70543498,0.00016338,2]
[329318993,1718242241111,-500.0,0.00016438,2]
[329318994,1718242241125,-500.0,0.00016438,2]
[329318995,1718242241137,-500.0,0.00016438,2]
[329318996,1718242241151,-500.0,0.00016438,2]
[329318997,1718242241162,-500.0,0.00016438,2]
[329318998,1718242241183,-500.0,0.00016438,2]
[329318999,1718242241194,-500.0,0.00016438,2]
[329319000,1718242241209,-500.99016206,0.00016438,2]
[329319001,1718242241225,-500.0,0.00016438,2]
[329319002,1718242241238,-243.55702098,0.00016438,2]
[329319003,1718242241254,-500.0,0.00016438,2]
[329319004,1718242241274,-505.04818177,0.00016438,2]
[329319005,1718242241286,-500.0,0.00016438,2]
[329319006,1718242241298,-500.0,0.00016438,2]
[329319007,1718242241310,-500.0,0.00016438,2]
[329319008,1718242241321,-627.44428766,0.00016438,2]
[329319009,1718242241334,-500.0,0.00016438,2]
[329319010,1718242241349,-613.73470245,0.00016438,2]
[329319011,1718242241367,-500.0,0.00016438,2]
[329319012,1718242241378,-500.0,0.00016438,2]
[329319013,1718242241399,-516.60972378,0.00016438,2]
[329319014,1718242241420,-500.0,0.00016438,2]
[329319015,1718242241439,-503.63462786,0.00016438,2]
[329319016,1718242241461,-500.0,0.00016438,2]
[329319017,1718242241478,-500.0,0.00016438,2]
[329319019,1718242241491,-500.0,0.00016438,2]
[329319021,1718242241517,-500.0,0.00016438,2]
[329319024,1718242241713,-500.0,0.00016438,2]
[329319026,1718242241734,-500.0,0.00016438,2]
[329319027,1718242241749,-500.0,0.00016438,2]
[329319029,1718242241766,-500.0,0.00016438,2]
[329319030,1718242241783,-506.13114056,0.00016438,2]
[329319031,1718242241814,-500.0,0.00016438,2]
[329319032,1718242241829,-500.0,0.00016438,2]
[329319033,1718242241841,-500.0,0.00016438,2]
[329319034,1718242241856,-500.0,0.00016438,2]
[329319035,1718242241873,-500.0,0.00016438,2]
[329319036,1718242241893,-500.0,0.00016438,2]
[329319037,1718242241930,-500.0,0.00016438,2]
[329319039,1718242241943,-500.0,0.00016438,2]
[329319040,1718242241963,-500.0,0.00016438,2]
[329319041,1718242241992,-555.22222528,0.00016438,2]
[329319042,1718242242020,-500.0,0.00016438,2]
[329319043,1718242242050,-500.0,0.00016438,2]
[329319044,1718242242072,-500.0,0.00016438,2]
[329319045,1718242242084,-364.57345289,0.00016438,2]
[329319046,1718242242095,-500.0,0.00016438,2]
[329319047,1718242242113,-500.0,0.00016438,2]
[329319048,1718242242127,-509.72580015,0.00016438,2]
[329319049,1718242242139,-500.0,0.00016438,2]
[329319050,1718242242154,-394.95705111,0.00016438,2]
[329319051,1718242242176,-500.0,0.00016438,2]
[329319052,1718242242189,-500.0,0.00016438,2]
[329319053,1718242242206,-500.0,0.00016438,2]
[329319054,1718242242218,-500.0,0.00016438,2]
[329319055,1718242242245,-500.0,0.00016438,2]
[329319056,1718242242274,-500.0,0.00016438,2]
[329319057,1718242242286,-638.48058846,0.00016438,2]
[329319058,1718242242299,-500.0,0.00016438,2]
[329319059,1718242242316,-500.0,0.00016438,2]
[329319060,1718242242339,-500.0,0.00016438,2]
[329319061,1718242242356,-182.62665212,0.00016438,2]
[329319062,1718242242368,-515.72179051,0.00016438,2]
[329319064,1718242242408,-500.0,0.00016438,2]
[329319065,1718242242431,-500.0,0.00016438,2]
[329319066,1718242242467,-500.0,0.00016438,2]
[329319067,1718242242492,-500.0,0.00016438,2]
[329319068,1718242242506,-500.0,0.00016438,2]
[329319069,1718242242539,-509.96720287,0.00016438,2]
[329319070,1718242242566,-500.0,0.00016438,2]
[329319071,1718242242577,-500.0,0.00016438,2]
[329319072,1718242242590,-500.0,0.00016438,2]
[329319073,1718242242605,-500.0,0.00016438,2]
[329319074,1718242242620,-500.0,0.00016438,2]
[329319075,1718242242632,-634.7935205,0.00016438,2]
[329319076,1718242242656,-500.0,0.00016438,2]
[329319077,1718242242669,-504.8708622,0.00016438,2]
[329319078,1718242242687,-502.13775332,0.00016438,2]
[329319079,1718242242702,-501.45406621,0.00016438,2]
[329319080,1718242242733,-500.0,0.00016438,2]
[329319081,1718242242749,-500.0,0.00016438,2]
[329319082,1718242242769,-500.0,0.00016438,2]
[329319083,1718242242807,-500.0,0.00016438,2]
[329319084,1718242242834,-613.15142021,0.00016438,2]
[329319085,1718242242848,-500.0,0.00016438,2]
[329319086,1718242242860,-500.0,0.00016438,2]
[329319087,1718242242870,-500.0,0.00016438,2]
[329319088,1718242242881,-500.0,0.00016438,2]
[329319089,1718242242897,-500.0,0.00016438,2]
[329319090,1718242242914,-500.0,0.00016438,2]
[329319091,1718242242930,-500.0,0.00016438,2]
[329319092,1718242242951,-500.0,0.00016438,2]
[329319093,1718242242969,-500.0,0.00016438,2]
[329319094,1718242242988,-500.0,0.00016438,2]
[329319095,1718242243007,-500.0,0.00016438,2]
[329319096,1718242243022,-500.0,0.00016438,2]
[329319097,1718242243038,-501.19378573,0.00016438,2]
[329319098,1718242243060,-500.0,0.00016438,2]
[329319099,1718242243077,-500.0,0.00016438,2]
[329319100,1718242243103,-500.0,0.00016438,2]
[329319101,1718242243119,-500.0,0.00016438,2]
[329319102,1718242243147,-500.0,0.00016438,2]
[329319103,1718242243163,-500.0,0.00016438,2]
[329319104,1718242243181,-500.0,0.00016438,2]
[329319105,1718242243195,-500.0,0.00016438,2]
[329319106,1718242243213,-500.0,0.00016438,2]
[329319108,1718242243267,-500.0,0.00016438,2]
[329319111,1718242243291,-500.0,0.00016438,2]
[329319113,1718242243308,-453.77269578,0.00016438,2]
[329319116,1718242243338,-500.0,0.00016438,2]
[329319118,1718242243361,-500.0,0.00016438,2]
[329319119,1718242243375,-500.0,0.00016438,2]
[329319120,1718242243390,-500.0,0.00016438,2]
[329319122,1718242243408,-500.0,0.00016438,2]
[329319124,1718242243420,-500.0,0.00016438,2]
[329319126,1718242243433,-500.0,0.00016438,2]
[329319127,1718242243455,-679.31,0.00016438,2]
[329319128,1718242243472,-500.0,0.00016438,2]
[329319129,1718242243498,-500.0,0.00016438,2]
[329319130,1718242243517,-500.0,0.00016438,2]
[329319131,1718242243532,-500.0,0.00016438,2]
[329319132,1718242243545,-500.0,0.00016438,2]
[329319133,1718242243567,-500.0,0.00016438,2]
[329319134,1718242243587,-500.0,0.00016438,2]
[329319135,1718242243608,-500.0,0.00016438,2]
[329319136,1718242243620,-500.0,0.00016438,2]
[329319137,1718242243641,-500.0,0.00016438,2]
[329319138,1718242243671,-500.0,0.00016438,2]
[329319139,1718242243694,-500.0,0.00016438,2]
[329319140,1718242243713,-500.0,0.00016438,2]
[329319141,1718242243733,-513.56929984,0.00016438,2]
[329319142,1718242243754,-500.0,0.00016438,2]
[329319143,1718242243779,-500.0,0.00016438,2]
[329319144,1718242243817,-538.81461973,0.00016438,2]
[329319145,1718242243831,-500.0,0.00016438,2]
[329319146,1718242243845,-500.0,0.00016438,2]
[329319147,1718242243864,-500.0,0.00016438,2]
[329319148,1718242243880,-500.0,0.00016438,2]
[329319150,1718242243897,-500.0,0.00016438,2]
[329319153,1718242243921,-500.0,0.00016438,2]
[329319154,1718242243964,-500.0,0.00016438,2]
[329319155,1718242243977,-590.37,0.00016438,2]
[329319156,1718242243992,-500.0,0.00016438,2]
[329319157,1718242244008,-514.63232221,0.00016438,2]
[329319158,1718242244024,-538.47180481,0.00016438,2]
[329319159,1718242244042,-500.0,0.00016438,2]
[329319160,1718242244062,-564.553099,0.00016438,2]
[329319161,1718242244082,-500.0,0.00016438,2]
[329319162,1718242244095,-500.0,0.00016438,2]
[329319163,1718242244106,-500.0,0.00016438,2]
[329319164,1718242244119,-500.0,0.00016438,2]
[329319165,1718242244138,-500.0,0.00016438,2]
[329319166,1718242244167,-500.0,0.00016438,2]
[329319167,1718242244181,-502.42493305,0.00016438,2]
[329319169,1718242244202,-500.0,0.00016438,2]
[329319170,1718242244215,-500.0,0.00016438,2]
[329319172,1718242244229,-576.08,0.00016438,2]
[329319175,1718242244252,-500.0,0.00016438,2]
[329319177,1718242244269,-500.0,0.00016438,2]
[329319179,1718242244282,-500.0,0.00016438,2]
[329319181,1718242244297,-500.0,0.00016438,2]
[329319183,1718242244312,-500.0,0.00016438,2]
[329319185,1718242244323,-600.32238702,0.00016438,2]
[329319187,1718242244335,-234.64588568,0.00016438,2]
[329319188,1718242244349,-500.0,0.00016438,2]
[329319191,1718242244367,-500.0,0.00016438,2]
[329319193,1718242244387,-500.0,0.00016438,2]
[329319195,1718242244414,-501.22283651,0.00016438,2]
[329319197,1718242244438,-500.0,0.00016438,2]
[329319199,1718242244452,-500.0,0.00016438,2]
[329319201,1718242244466,-500.0,0.00016438,2]
[329319202,1718242244480,-500.0,0.00016438,2]
[329319204,1718242244498,-500.0,0.00016438,2]
[329319207,1718242244517,-500.0,0.00016438,2]
[329319209,1718242244529,-500.0,0.00016438,2]
[329319211,1718242244542,-500.0,0.00016438,2]
[329319213,1718242244554,-500.0,0.00016438,2]
[329319214,1718242244566,-500.0,0.00016438,2]
[329319216,1718242244602,-500.0,0.00016438,2]
[329319219,1718242244633,-502.44994939,0.00016438,2]
[329319221,1718242244654,-500.0,0.00016438,2]
[329319223,1718242244672,-500.0,0.00016438,2]
[329319225,1718242244689,-357.0113761,0.00016438,2]
[329319227,1718242244712,-500.0,0.00016438,2]
[329319229,1718242244727,-500.0,0.00016438,2]
[329319231,1718242244745,-500.0,0.00016438,2]
[329319233,1718242244758,-500.0,0.00016438,2]
[329319235,1718242244772,-435.55247933,0.00016438,2]
[329319237,1718242244813,-500.0,0.00016438,2]
[329319239,1718242244827,-500.0,0.00016438,2]
[329319241,1718242244841,-500.0,0.00016438,2]
[329319243,1718242244852,-500.0,0.00016438,2]
[329319245,1718242244867,-500.0,0.00016438,2]
[329319247,1718242244879,-527.68990037,0.00016438,2]
[329319249,1718242244899,-500.0,0.00016438,2]
[329319250,1718242244918,-500.0,0.00016438,2]
[329319252,1718242244932,-500.0,0.00016438,2]
[329319254,1718242244950,-167.66469274,0.00016438,2]
[329319257,1718242244972,-529.76836759,0.00016438,2]
[329319258,1718242244988,-500.0,0.00016438,2]
[329319260,1718242245003,-500.0,0.00016438,2]
[329319262,1718242245025,-502.37103518,0.00016438,2]
[329319265,1718242245040,-500.0,0.00016438,2]